Cogmind - Beta 16 @@@ ROGUE MODE // 2025.10.31 @ 11:30:53 Player: Not_Jesus8 Result: Destroyed by Y-45 Defender with Heavy Assault Rifle Performance ------------- Evolutions (2) 1000 Regions Visited (5) 1000 Robots Destroyed (0) 0 Value Destroyed (0) 0 Prototype IDs (0) 0 Alien Tech Used (0) 0 Bonus (695) 695 TOTAL SCORE: 2695 Bonus ------- Pacifist 470 Follower Combat Kills 229 Friendly Fire -4 Cogmind --------- Core Integrity 0/550 Matter 300/300 Energy 100/100 System Corruption 1% Temperature Cool (20) Movement Core (50) Location -8/Storage Parts ------- > --- POWER (1) -------- (None) > --- PROPULSION (2) --- (None) > --- UTILITY (6) ------ (None) > --- WEAPON (2) ------- (None) > --- INVENTORY (5) ---- (None) Peak State ------------ > --- POWER ------------ (None) > --- PROPULSION ------- Wheel Wheel > --- UTILITY ---------- (None) > --- WEAPON ----------- (None) > --- INVENTORY -------- (None) [Rating: 2] Favorites ----------- Power None Propulsion Wheel Wheel Wheel Utility None Weapon None Build | -11 -10 -9 -9 -8 -8 ------- Run | Yrd Mat Mat Min Mat Sto Slots Evolved 4 | . . 2 . 2 . Power . | . . . . . . Propulsion . | . . . . . . Utility 4 | . . 2 . 2 . Weapon . | . . . . . . Parts Attached 2 | 2 . . . . . Power . | . . . . . . Engine . | . . . . . . Core . | . . . . . . Reactor . | . . . . . . Propulsion 2 | 2 . . . . . Treads . | . . . . . . Leg . | . . . . . . Wheel 2 | 2 . . . . . Hover . | . . . . . . Flight . | . . . . . . Utility . | . . . . . . Device . | . . . . . . Storage . | . . . . . . Processor . | . . . . . . Hackware . | . . . . . . Protection . | . . . . . . Artifact . | . . . . . . Weapon . | . . . . . . Energy Gun . | . . . . . . Energy Cannon . | . . . . . . Ballistic Gun . | . . . . . . Ballistic Cannon . | . . . . . . Launcher . | . . . . . . Special Weapon . | . . . . . . Impact Weapon . | . . . . . . Slashing Weapon . | . . . . . . Piercing Weapon . | . . . . . . Special Melee Weapon . | . . . . . . Unidentified Prototypes . | . . . . . . Parts Lost 2 | . . 1 . 1 . Power . | . . . . . . Propulsion 2 | . . 1 . 1 . Utility . | . . . . . . Weapon . | . . . . . . Highest Loss Streak 1 | . . 1 . 1 . To Critical Strikes . | . . . . . . Average Backups . | . . . . . . Power . | . . . . . . Propulsion . | . . . . . . Utility . | . . . . . . Weapon . | . . . . . . Tool/Special . | . . . . . . Unused Backups . | . . . . . . Power . | . . . . . . Propulsion . | . . . . . . Utility . | . . . . . . Weapon . | . . . . . . Tool/Special . | . . . . . . Average Slot Usage (%) 10 | . 28 17 11 6 . Wheel 10 | . 28 17 11 6 . Peak Build Rating 2 | 2 2 2 1 1 . Average Rating . | 1 2 1 1 . . On Entrance 1 | . 2 2 1 1 . Avg Prop Armor Cover (%) . | . . . . . . Naked Turns 244 | . . . . 26 218 Heaviest Build . | . . . . . . Greatest Support 20 | 20 20 20 10 10 3 Greatest Overweight (x) . | . . . . . . Average Overweight (x) . | . . . . . . Largest Inventory Capacity 5 | 5 5 5 5 5 5 Average Capacity 5 | 5 5 5 5 5 5 Most Carried . | . . . . . . Average Carried . | . . . . . . Final Capacity 5 | 5 5 5 5 5 5 Final Carried . | . . . . . . Class Distribution -------------------- 80% | Mutant 19% | Commander-Mutant Dominant Class ---------------- Mutant | -10/Materials Mutant | -9/Materials Mutant | -9/Mines Mutant | -8/Materials Commander-Mutant | -8/Storage Resources | -11 -10 -9 -9 -8 -8 ----------- Run | Yrd Mat Mat Min Mat Sto Matter Collected 143 | 59 . . . . 84 Remotely . | . . . . . . Salvage Created . | . . . . . . Parts . | . . . . . . Haulers Intercepted . | . . . . . . Recyclers Shooed . | . . . . . . Parts Field Recycled . | . . . . . . Retrieved Matter . | . . . . . . Parts Self-Destructed . | . . . . . . Prevented . | . . . . . . Parts Restored . | . . . . . . Kills | -11 -10 -9 -9 -8 -8 ------- Run | Yrd Mat Mat Min Mat Sto Combat Hostiles Destroyed . | . . . . . . Classes Destroyed . | . . . . . . Best Kill Streak . | . . . . . . Combat Bots Only . | . . . . . . Max Kills in Single Turn . | . . . . . . Gunslinging . | . . . . . . Exploded . | . . . . . . Melee . | . . . . . . Uniques/NPCs Destroyed . | . . . . . . Combat | -11 -10 -9 -9 -8 -8 -------- Run | Yrd Mat Mat Min Mat Sto Hostile Shots Fired 98 | . . 22 . 20 56 Missed 33 | . . 6 . 5 22 Hits 65 | . . 16 . 15 34 Projectile 65 | . . 16 . 15 34 Critical Strikes 2 | . . 1 . . 1 Damage Taken 799 | . . 210 11 240 338 Core 711 | . . 144 8 221 338 Absorbed by Shields 43 | . . . . . 43 Core Remaining (%) 87 | 100 100 . 62 . . Volleys Fired . | . . . . . . Largest . | . . . . . . Hottest . | . . . . . . Shots Fired . | . . . . . . Gun . | . . . . . . Cannon . | . . . . . . Launcher . | . . . . . . Special . | . . . . . . Kinetic . | . . . . . . Thermal . | . . . . . . Explosive . | . . . . . . Electromagnetic . | . . . . . . Robot Hit Streak . | . . . . . . Robot Miss Streak . | . . . . . . Penetration Max . | . . . . . . Secondary Targets . | . . . . . . Shots Hit Robots . | . . . . . . Core Hits 2 | . . . 1 1 . Critical Kills . | . . . . . . Critical Parts Destroyed . | . . . . . . Critical Strikes . | . . . . . . Melee Attacks . | . . . . . . Impact . | . . . . . . Slashing . | . . . . . . Piercing . | . . . . . . Sneak Attacks . | . . . . . . Combat Hostiles . | . . . . . . Follow-up Attacks . | . . . . . . Damage Inflicted 106 | . . . 27 12 67 Guns . | . . . . . . Cannons . | . . . . . . Explosions . | . . . . . . Melee . | . . . . . . Ramming 106 | . . . 27 12 67 Kinetic . | . . . . . . Thermal . | . . . . . . Explosive . | . . . . . . Electromagnetic . | . . . . . . Impact . | . . . . . . Slashing . | . . . . . . Piercing . | . . . . . . Highest Corruption 1 | . . . . . 1 Average Corruption 1 | . . . . . 1 Corruption Purged . | . . . . . . Corruption Blocked . | . . . . . . Overload Shots . | . . . . . . Overflow Damage . | . . . . . . Projectiles . | . . . . . . Explosions . | . . . . . . Melee . | . . . . . . Knockbacks 1 | . . . 1 . . Impact 1 | . . . 1 . . Kinetic . | . . . . . . Secondary . | . . . . . . Self-Inflicted Damage 44 | . . . 11 5 28 Shots . | . . . . . . Rammed 29 | . . . 7 5 17 Targets Rammed 29 | . . . 7 5 17 Kicked . | . . . . . . Crushed . | . . . . . . Highest Temperature . | . . . . . . Average Temperature . | . . . . . . Received Heat Transfer 227 | . . 81 . 99 47 Siege Activations . | . . . . . . Martial Activations . | . . . . . . Shielding Activations . | . . . . . . Robots Disrupted . | . . . . . . Combat Hostiles . | . . . . . . Robots Corrupted . | . . . . . . Combat Hostiles . | . . . . . . Parts Fried . | . . . . . . Impact Corruptions . | . . . . . . Robots Melted . | . . . . . . Combat Hostiles . | . . . . . . Parts Melted . | . . . . . . Heat Transferred . | . . . . . . Parts Sabotaged . | . . . . . . Parts Stolen . | . . . . . . Parts Stripped . | . . . . . . Power Chain Reactions . | . . . . . . Alert | -11 -10 -9 -9 -8 -8 ------- Run | Yrd Mat Mat Min Mat Sto Maximum Alert Level 2 | . . . . . 2 Low Security (%) 86 | 100 100 100 100 100 44 Level 1 12 | . . . . . 51 Level 2 1 | . . . . . 4 Level 3 . | . . . . . . Level 4 . | . . . . . . Level 5 . | . . . . . . High Security . | . . . . . . Max Security . | . . . . . . Peak Influence 400 | . . . . . 400 Initial . | . . . . . . Average 44 | . . . . . 182 Influence Increases 510 | . . . . . 510 Destroy 0b10 Robot/C 200 | . . . . . 200 Destroy Leader 80 | . . . . . 80 Allied During Kill 170 | . . . . . 170 Partial Spotted 45 | . . . . . 45 Lose Combat Pursuer 15 | . . . . . 15 Influence Decreases 110 | . . . . . 110 Time Decay 70 | . . . . . 70 Lost Ally 40 | . . . . . 40 Squads Dispatched 5 | . 1 1 . . 3 Investigation . | . . . . . . Extermination . | . . . . . . Reinforcement 3 | . 1 1 . . 1 Assault . | . . . . . . Garrison 2 | . . . . . 2 Intercept . | . . . . . . Searches Triggered . | . . . . . . Construction Impeded . | . . . . . . Haulers Reinforced . | . . . . . . Active Scanning Responses . | . . . . . . Cargo Convoy Interrupts . | . . . . . . Stealth | -11 -10 -9 -9 -8 -8 --------- Run | Yrd Mat Mat Min Mat Sto Distress Signals 2 | . . . . . 2 Communications Jammed . | . . . . . . Distress Signals . | . . . . . . Times Spotted 24 | . 1 7 . 5 11 Peak Tracking Total 6 | . . 6 . 5 6 Tactical Retreats 1 | . . . . . 1 Traps | -11 -10 -9 -9 -8 -8 ------- Run | Yrd Mat Mat Min Mat Sto Traps Triggered 2 | . . . . . 2 Indirectly . | . . . . . . Trap Hack Attempts . | . . . . . . Triggered . | . . . . . . Disarmed . | . . . . . . Reprogrammed . | . . . . . . Reused . | . . . . . . Traps Extracted . | . . . . . . Installed . | . . . . . . Triggered . | . . . . . . Machines | -11 -10 -9 -9 -8 -8 ---------- Run | Yrd Mat Mat Min Mat Sto Machines Disabled . | . . . . . . Max in Single Turn . | . . . . . . Machines Repaired . | . . . . . . Machines Dismantled . | . . . . . . Machines Sabotaged . | . . . . . . Overloaded Fab Kills . | . . . . . . Hacking | -11 -10 -9 -9 -8 -8 --------- Run | Yrd Mat Mat Min Mat Sto Machines Accessed . | . . . . . . Terminals . | . . . . . . Fabricators . | . . . . . . Repair Stations . | . . . . . . Recycling Units . | . . . . . . Scanalyzers . | . . . . . . Garrison Access . | . . . . . . Total Hacks . | . . . . . . Successful . | . . . . . . Failed . | . . . . . . Catastrophic . | . . . . . . Database Lockouts . | . . . . . . Manual . | . . . . . . Terminals . | . . . . . . Fabricators . | . . . . . . Repair Stations . | . . . . . . Recycling Units . | . . . . . . Scanalyzers . | . . . . . . Garrison Access . | . . . . . . Terminal Hacks . | . . . . . . Fabricator Hacks . | . . . . . . Repair Station Hacks . | . . . . . . Recycling Unit Hacks . | . . . . . . Scanalyzer . | . . . . . . Garrison Access Hacks . | . . . . . . Unauthorized Hacks . | . . . . . . Terminals . | . . . . . . Fabricators . | . . . . . . Repair Stations . | . . . . . . Recycling Units . | . . . . . . Scanalyzers . | . . . . . . Garrison Access . | . . . . . . Data Cores Recovered . | . . . . . . Used . | . . . . . . Hacking Detections . | . . . . . . Full Trace Events . | . . . . . . Feedback Events . | . . . . . . Feedback Blocked . | . . . . . . Robot Schematics Acquired . | . . . . . . Robots Built . | . . . . . . Authchips . | . . . . . . Time . | . . . . . . Total Robot Build Rating . | . . . . . . Part Schematics Acquired . | . . . . . . Parts Built . | . . . . . . Authchips . | . . . . . . Time . | . . . . . . Total Part Build Rating . | . . . . . . Part Studies Acquired . | . . . . . . Parts Repaired . | . . . . . . Time . | . . . . . . Parts Recycled . | . . . . . . Recycled Matter . | . . . . . . Retrieved Matter . | . . . . . . Retrieved Components . | . . . . . . Parts Scanalyzed . | . . . . . . Part Schematics Acquired . | . . . . . . Parts Damaged . | . . . . . . Bothacking | -11 -10 -9 -9 -8 -8 ------------ Run | Yrd Mat Mat Min Mat Sto Used RIF Installer . | . . . . . . Robots Hacked . | . . . . . . Non-combat . | . . . . . . Combat . | . . . . . . Robot Hacks Applied . | . . . . . . Relay Couplers Released . | . . . . . . Fabnet Peak Effective % . | . . . . . . Robots Rewired . | . . . . . . Allies Hacked . | . . . . . . Hacks Repelled . | . . . . . . Allies | -11 -10 -9 -9 -8 -8 -------- Run | Yrd Mat Mat Min Mat Sto Total Allies 10 | . . . . . 10 Largest Group 10 | . . . . . 10 Highest-Rated Group 173 | . . . . . 173 Highest-Rated Ally 29 | . . . . . 29 Total Orders . | . . . . . . Ally Attacks 52 | . . . . . 52 Total Damage 651 | . . . . . 651 Kills 10 | . . . . . 10 Allies Corrupted . | . . . . . . Allies Melted . | . . . . . . Intel | -11 -10 -9 -9 -8 -8 ------- Run | Yrd Mat Mat Min Mat Sto Active Infowar (turns) . | . . . . . . Robot Analysis Total . | . . . . . . Derelict Logs Recovered 2 | . . . 2 . . Drone Launches . | . . . . . . Drone Recoveries . | . . . . . . Exploration | -11 -10 -9 -9 -8 -8 ------------- Run | Yrd Mat Mat Min Mat Sto Turns Passed 888 | 27 92 93 348 110 218 Spaces Moved 1018 | 36 115 117 427 148 175 Core 233 | 14 . . . 44 175 Treads . | . . . . . . Legs . | . . . . . . Wheels 785 | 22 115 117 427 104 . Hover . | . . . . . . Flight . | . . . . . . Fastest Speed 50 | 50 80 80 80 50 50 Average Speed 73 | 68 80 80 80 71 50 Slowest Speed 80 | 80 80 80 80 80 50 Overloaded Moves . | . . . . . . Propulsion Burnouts . | . . . . . . Robots Hopped . | . . . . . . Potential Cave-ins . | . . . . . . Cave-ins Triggered . | . . . . . . Exploration Rate (%) 28 | 4 30 14 66 14 43 Regions Visited 5 Branch Regions 2 Pre-discovered Areas . | . . . . . . Known Exits Taken 1 | . . . . 1 . Unknown Exits Taken 4 | 1 1 1 1 . . Scrap Searched . | . . . . . . Spaces Dug . | . . . . . . Terrain Destroyed . | . . . . . . Melee . | . . . . . . Projectile . | . . . . . . AOE . | . . . . . . Terrain Rammed . | . . . . . . Walls Destroyed . | . . . . . . Machines Disabled . | . . . . . . Actions | -11 -10 -9 -9 -8 -8 --------- Run | Yrd Mat Mat Min Mat Sto Total 1157 | 37 114 116 433 152 305 Wait 93 | . . . . . 93 Move 1014 | 35 114 116 426 148 175 Hop . | . . . . . . Pick Up . | . . . . . . Fast Attach 2 | 2 . . . . . Attach . | . . . . . . Detach . | . . . . . . Swap . | . . . . . . Drop . | . . . . . . Fire . | . . . . . . Melee . | . . . . . . Ram 28 | . . . 7 4 17 Kick . | . . . . . . Crush . | . . . . . . Escape Stasis 18 | . . . . . 18 Rewire 2 | . . . . . 2 Trap . | . . . . . . Miscellaneous . | . . . . . . Route ------- -11/Scrapyard -10/Materials -9/Materials -9/Mines -8/Materials -8/Storage History --------- Turn | Location | Event 3 | -11/Scrapyard | Discovered new exit (range 16) 28 | -11/Scrapyard | Entered Materials 105 | -10/Materials | Discovered new exit (range 16) 120 | -10/Materials | Entered another Materials area 120 | -9/Materials | Evolved 2 slots: Utility x2 199 | -9/Materials | Discovered new exit (range 13) 213 | -9/Materials | Entered Mines 289 | -9/Mines | Learned location of 1 exit from Materials 318 | -9/Mines | Build established: Mutant 342 | -9/Mines | Learned Materials terminal intel 533 | -9/Mines | Received a Rocket Launcher from a helpful Derelict 553 | -9/Mines | Discovered new exit (range 8) 561 | -9/Mines | Entered Materials 561 | -8/Materials | Evolved 2 slots: Utility x2 562 | -8/Materials | Identified exit to Storage 563 | -8/Materials | Loaded intel: 12 terminal locations 671 | -8/Materials | Entered Storage 699 | -8/Storage | Core integrity fell below 50% 723 | -8/Storage | Core integrity fell below 20% 731 | -8/Storage | Assisted by bots powering up and referring to "LRC-V3" 772 | -8/Storage | Garrison activated, responded to threat 889 | -8/Storage | Destroyed by Y-45 Defender with Heavy Assault Rifle Last Messages --------------- 00848_ Slammed into A-02 Transporter. 00852_ Destabilizing: Core damaged (-5). 00853_ Slammed into A-02 Transporter. 00856_ Destabilizing: Core damaged (-5). 00874_ W-25 Informer sends out distress signal. 00881_ Triggered Stasis Trap. 00881_ A bubble of rippling energy engulfs the area. 00881_ Field strength at 94. 00881_ Field strength at 88. 00882_ Field strength at 82. 00883_ Field strength at 76. 00884_ Field strength at 70. 00885_ Field strength at 59. 00886_ Field strength at 53. 00886_ ALERT: Hostiles spotted, dispatching reinforcements to Terminal S013. 00887_ Field strength at 47. 00888_ Field strength at 41. 00889_ Critical hit (Burn: +27). Map ----- +----------------------------------------------------+ | ??????# T#???""" ??# #??#???????????????????? | | ??????# #?? """ # # " #??????????????? | | ??????# #?? """ ] + + ]]#??????????????? | | ??????####### # # " ]]#??????????????? | | ?????????????# """ # #??#???????????????????? | | ?????????????#??""" ?# #??????????????????????? | | ????????????????""" ??# #??????????????????????? | | ???????????????? ??# #??????????????????????? | | ????????????????#+#???# #??????????????????????? | | ????????????????# ##### #??????????????????????? | | ????????????????# #??????????????????????? | | ????????????????# #??????????????????????? | | ????????????????# """ #??????????????????????? | | ????????????????# """ #??????????????????????? | | ????????????????# """ #??????????????????????? | | ????????????????# #??????????????????????? | | ????????????????# #??????????????????????? | | ????????????##### """ #??????????????????????? | | ??????????? # """ #??????????????????????? | | ?????????? / Y w """ #????""????????????????? | | ????????????# #??""""????????????????? | | ????????????# # """" T"#???????????? | | ????????????# + ""#???????????? | | ?????????? # ""#???????????? | | ???????????############ #?? ###???????????? | | ??????????????????????# @#???? #?????????????? | | ??????????????????????# a#?????? #?????????????? | | ??????????????????????# #????????#?????????????? | | ??????????????????????# ??????????????????????? | | ?????????????????????? ??????????????????????? | | ?????????????????????## ??????????????????????? | | ??????????????????????#####??????????????????????? | | ?????????????????????????????????????????????????? | | ?????????????????????????????????????????????????? | | ?????????????????????????????????????????????????? | | ?????????????????????????????????????????????????? | | ?????????????????????????????????????????????????? | | ?????????????????????????????????????????????????? | | | | | | | | | | | | | | | | | | | | | | | | | +----------------------------------------------------+ Best States ------------- Heat Dissipation 31 Energy Generation 5 Energy Capacity 100 Matter Stores 300 Matter Capacity 300 Sight Range 16 Terrain Scan Density 10 Evasion (%) 50 Item Schematics ----------------- None Robot Schematics ------------------ None Fabricated ------------ Nothing Repaired ---------- Nothing Studied --------- None Alien Tech Used ----------------- None Achievements -------------- None Challenges ------------ None Game ------ Seed SuperquantumCargoField Manual? 0 Play Time 00:05:59 Cumulative 20.1 hours Start 2025.10.31 @ 11:26:22 End 2025.10.31 @ 11:30:53 Sessions 1 Manual Loads 0 Difficulty Rogue Special Mode None Game No. 35 Rogue 35 Adventurer 0 Explorer 0 Win Type - Total 2 Types 2/0/0/0/0/0/0/0/0/0 Lore% 35 Gallery% 26 Achievement% 25 Wizard Run 0 Options --------- Layout 1 ASCII 0 Keyboard 1 Movement Arrows Keybinds 0 Fullscreen 1 Font 24/Smallcaps Map View 50x35 Zoom Use 0% Tactical HUD 1 Map Filters NONE Filters NONE Steam 1 RUN: 653e68f2-a320-496a-b380-dcf3b49e3e16